Cogmind - Beta 10.2 @@@ ROGUE MODE // 2020.11.09 @ 16:52:02 // Halloween2020/ForbiddenLore Player: ApricotBot Result: Destroyed by H-66 Slayer with Gauss Rifle Performance ------------- Evolutions (5) 2500 Regions Visited (8) 1600 Robots Destroyed (110) 550 Value Destroyed (3328) 3328 Prototype IDs (0) 0 Alien Tech Used (0) 0 Bonus (87) 87 TOTAL SCORE: 8065 Bonus ------- High Alert Combat Kills 87 Cogmind --------- Core Integrity 0/1000 Matter 300/300 Energy 100/100 System Corruption 0% Temperature Cool (0) Movement Core (150) Ox2 Location -5/Extension Parts ------- > --- POWER (2) -------- (None) > --- PROPULSION (5) --- (None) > --- UTILITY (6) ------ Improved Targeting Computer Armor Integrity Analyzer Armor Integrity Analyzer Improved Utility Shielding Dynamic Insulation System > --- WEAPON (4) ------- Axe > --- INVENTORY (4) ---- Katana Peak State ------------ > --- POWER ------------ Light Fission Core Light Fission Core > --- PROPULSION ------- Carbon-fiber Leg Carbon-fiber Leg Flexi-carbon Leg Armored Leg > --- UTILITY ---------- Power Amplifier Advanced Heat Sink Small Storage Unit Improved Targeting Computer Matter Filter Improved Power Shielding > --- WEAPON ----------- Gauss Rifle Coil Gun Heavy Machine Gun Katana > --- INVENTORY -------- Deuterium Engine Light Nuclear Core Micro Nuclear Core Micro Nuclear Core Improved Proton Missile Launcher Heavy Missile Launcher [Rating: 65] Favorites ----------- Power Micro Nuclear Core Engine Light Ion Engine Power Core Micro Nuclear Core Propulsion Aluminum Leg Treads Medium Treads Leg Aluminum Leg Wheel Compact Wheel Flight Unit Xenon Bombardment Thruster Utility Small Storage Unit Device Weight Redist. System Storage Small Storage Unit Processor Improved Targeting Computer Protection Improved Power Shielding Weapon Ion Cannon Energy Gun Shock Rifle Energy Cannon Ion Cannon Ballistic Gun Coil Gun Ballistic Cannon Magnetic Acceleration Cannon Launcher Heavy Missile Launcher Impact Weapon Hammer Slashing Weapon Katana Build | -11 -10 -9 -9 -8 -7 -6 -5 -5 ------- Run | Scr Mat Mat Min Mat Fac Fac Fac Ext Slots Evolved 10 | . . 2 . 2 2 2 2 . Power 1 | . . . . . 1 . . . Propulsion 3 | . . 1 . . 1 . 1 . Utility 4 | . . . . 1 . 2 1 . Weapon 2 | . . 1 . 1 . . . . Parts Attached 130 | 6 7 6 4 14 15 47 10 21 Power 23 | 1 2 . 1 1 5 7 2 4 Engine 10 | 1 2 . 1 . 2 3 . 1 Core 13 | . . . . 1 3 4 2 3 Reactor . | . . . . . . . . . Propulsion 30 | 2 . 1 1 4 1 13 . 8 Treads 6 | . . . . . 1 3 . 2 Leg 17 | 2 . 1 1 4 . 9 . . Wheel 6 | . . . . . . . . 6 Hover . | . . . . . . . . . Flight 1 | . . . . . . 1 . . Utility 23 | 1 1 . 1 2 4 9 3 2 Device 12 | . 1 . . 1 2 7 . 1 Storage 2 | 1 . . . . . 1 . . Processor 4 | . . . . . 2 . 1 1 Hackware . | . . . . . . . . . Protection 5 | . . . 1 1 . 1 2 . Artifact . | . . . . . . . . . Weapon 54 | 2 4 5 1 7 5 18 5 7 Energy Gun 13 | 1 1 1 . 2 2 6 . . Energy Cannon 13 | . 1 1 . 5 3 2 . 1 Ballistic Gun 16 | 1 2 3 . . . 3 4 3 Ballistic Cannon 1 | . . . . . . . . 1 Launcher 8 | . . . . . . 6 1 1 Special Weapon . | . . . . . . . . . Impact Weapon 1 | . . . 1 . . . . . Slashing Weapon 2 | . . . . . . 1 . 1 Piercing Weapon . | . . . . . . . . . Special Melee Weapon . | . . . . . . . . . Unidentified Prototypes . | . . . . . . . . . Parts Lost 73 | . 2 . 2 9 14 15 4 27 Power 10 | . 2 . . . 3 . . 5 Propulsion 28 | . . . 1 4 4 7 1 11 Utility 9 | . . . . 2 2 1 1 3 Weapon 26 | . . . 1 3 5 7 2 8 Highest Loss Streak 14 | . 1 . 2 5 14 4 3 14 Average Slot Usage (%) 81 | . 87 98 97 85 66 81 91 73 Engine 2 | . 13 11 11 3 2 . . . Core 8 | . . . . 6 11 12 11 8 Treads 2 | . . . . . 4 4 . . Leg 16 | . 28 32 31 25 14 11 22 9 Device 10 | . 3 11 . 9 6 16 9 4 Storage 5 | . 14 11 11 5 . 3 5 4 Processor 4 | . . . . . 3 6 10 11 Protection 4 | . . . 10 5 1 4 5 8 Energy Gun 4 | . 10 8 . 3 1 7 . . Energy Cannon 5 | . 2 16 . 23 18 . . . Ballistic Gun 7 | . 14 7 24 2 . 4 15 10 Slashing Weapon 2 | . . . . . . 4 5 4 Naked Turns 47 | . . . . . 47 . . . Heaviest Build 47 | 10 13 16 27 42 47 38 41 41 Greatest Support 68 | 20 26 36 36 36 36 68 66 60 Greatest Overweight (x) 7 | . . . 1 1 3 1 . 7 Average Overweight (x) . | . . . . . . . . . Largest Inventory Capacity 6 | 6 6 6 6 6 4 6 6 6 Average Capacity 5 | 5 6 6 6 5 4 5 6 5 Most Carried 6 | 2 6 6 6 6 4 6 6 6 Average Carried 4 | 1 3 4 5 3 3 4 5 5 Final Capacity 6 | 6 6 6 6 4 4 6 6 4 Final Carried 6 | 2 6 5 6 4 4 6 6 1 Class Distribution -------------------- 40% | Mutant 24% | Scavenger-Gunner 20% | Scavenger-Mutant 4% | Gunner 4% | Scavenger-Skirmisher 3% | Scavenger-Tank Dominant Class ---------------- Mutant | -10/Materials Gunner | -9/Materials Scavenger-Mutant | -9/Mines Scavenger-Mutant | -8/Materials Scavenger-Skirmisher | -7/Factory Mutant | -6/Factory Scavenger-Gunner | -5/Factory Scavenger-Gunner | -5/Extension Resources | -11 -10 -9 -9 -8 -7 -6 -5 -5 ----------- Run | Scr Mat Mat Min Mat Fac Fac Fac Ext Matter Collected 2320 | 200 116 117 181 170 50 717 109 660 Remotely . | . . . . . . . . . Salvage Created 4401 | . 210 156 423 498 190 1667 109 1148 Parts 233 | . 23 5 22 21 15 90 2 55 Haulers Intercepted 3 | . 1 . . . . 2 . . Recyclers Shooed 8 | . 1 . . 3 . 4 . . Parts Field Recycled . | . . . . . . . . . Retrieved Matter . | . . . . . . . . . Parts Self-Destructed . | . . . . . . . . . Prevented . | . . . . . . . . . Kills | -11 -10 -9 -9 -8 -7 -6 -5 -5 ------- Run | Scr Mat Mat Min Mat Fac Fac Fac Ext Combat Hostiles Destroyed 71 | . 7 1 10 8 5 28 2 10 Melee 4 | . . . . . . 1 . 3 Guns 35 | . 6 . 10 2 2 8 2 5 Cannons 11 | . 1 1 . 5 2 . . 2 AOE 20 | . . . . . 1 19 . . Classes Destroyed 15 | . 4 2 1 1 1 4 1 1 Worker 11 | . . . . . 2 8 . 1 Builder 6 | . . . . . . 3 . 3 Tunneler 2 | . . . . . . 2 . . Hauler 3 | . 1 . . . . 2 . . Recycler 9 | . . 1 2 1 . 2 . 3 Operator 2 | . . . . 2 . . . . Watcher 6 | . 1 . . . 1 3 . 1 Swarmer 31 | . 6 . 7 . 3 11 . 4 Grunt 25 | . 1 . 2 8 2 11 1 . Brawler 2 | . . . 1 . . 1 . . Duelist 1 | . . . . . . . 1 . Sentry 4 | . . 1 . . . . . 3 Hunter 3 | . . . . . . 2 . 1 Programmer 3 | . . . . . . 3 . . Behemoth 2 | . . . . . . . . 2 Best Kill Streak 8 | . 4 1 8 2 5 8 2 5 Combat Bots Only 7 | . 4 1 7 2 3 5 2 3 Max Kills in Single Turn 6 | . 2 1 1 1 3 6 1 2 Gunslinging 1 | . 1 . . . . . . . Exploded 3 | . . . . . 1 3 . . Melee 1 | . . . . . . 1 . 1 Uniques/NPCs Destroyed . | . . . . . . . . . Combat | -11 -10 -9 -9 -8 -7 -6 -5 -5 -------- Run | Scr Mat Mat Min Mat Fac Fac Fac Ext Damage Taken 9047 | . 430 211 431 977 1086 2220 282 3410 Core 1958 | . 79 32 45 75 452 254 . 1021 Absorbed by Shields . | . . . . . . . . . Core Remaining (%) 73 | 100 68 . 80 86 35 70 . . Volleys Fired 275 | 3 32 11 33 48 19 69 7 53 Largest 4 | 2 2 3 3 4 4 3 3 3 Hottest 260 | 70 96 156 63 240 260 155 95 173 Shots Fired 547 | 5 61 20 85 109 34 116 16 101 Gun 396 | 5 59 10 85 34 14 85 15 89 Cannon 132 | . 2 10 . 75 20 13 . 12 Launcher 19 | . . . . . . 18 1 . Special . | . . . . . . . . . Kinetic 302 | 2 42 7 85 14 . 40 15 97 Thermal 114 | 3 8 7 . 72 20 . . 4 Explosive 16 | . . . . . . 15 1 . Electromagnetic 115 | . 11 6 . 23 14 61 . . Robot Hit Streak 12 | 2 6 8 12 8 6 10 3 10 Robot Miss Streak 6 | 2 4 2 6 6 2 2 6 4 Penetration Max 1 | . . . . . . 1 . 1 Secondary Targets 10 | . 3 . 5 . . . . 2 Max Gunslinging Chain 1 | . 1 . 1 . . . . 1 Shots Hit Robots 361 | 3 35 14 49 66 17 88 9 80 Core Hits 202 | 1 17 4 20 21 12 89 5 33 Critical Hits 22 | . . 1 1 . . 1 1 18 Critical Kills 5 | . . 1 . . . . . 4 Critical Parts Destroyed 14 | . . . . . . 1 1 12 Melee Attacks 45 | . . . . 9 . 22 5 9 Impact 9 | . . . . 9 . . . . Slashing 36 | . . . . . . 22 5 9 Piercing . | . . . . . . . . . Sneak Attacks 7 | . . . . 1 . 4 . 2 Combat Hostiles . | . . . . . . . . . Follow-up Attacks . | . . . . . . . . . Damage Inflicted 11472 | 34 401 240 518 1583 775 5295 269 2357 Guns 4410 | 34 382 59 518 243 163 1216 100 1695 Cannons 1699 | . 19 181 . 1035 165 55 . 244 Explosions 3978 | . . . . 127 443 3347 61 . Melee 1358 | . . . . 155 . 677 108 418 Ramming 27 | . . . . 23 4 . . . Kinetic 3447 | 8 215 37 518 75 . 686 100 1808 Thermal 2316 | 26 74 123 . 1116 608 238 . 131 Explosive 2726 | . . . . . . 2665 61 . Electromagnetic 1598 | . 112 80 . 214 163 1029 . . Impact 155 | . . . . 155 . . . . Slashing 1203 | . . . . . . 677 108 418 Piercing . | . . . . . . . . . Highest Corruption 6 | . . . . . . 6 . . Average Corruption 5 | . . . . . . 5 . . Corruption Purged . | . . . . . . . . . Effects 48 | . . . . . . 48 . . Message Errors 6 | . . . . . . 6 . . Matter Fused 11 | . . . . . . 11 . . Heat Flow Errors 4 | . . . . . . 4 . . Energy Discharges 6 | . . . . . . 6 . . Data Loss (minor) 4 | . . . . . . 4 . . Data Loss (major) 4 | . . . . . . 4 . . Misfires 1 | . . . . . . 1 . . Targeting Errors 11 | . . . . . . 11 . . Weapon Failures 1 | . . . . . . 1 . . Overload Shots . | . . . . . . . . . Overflow Damage 381 | . . . . 51 158 140 . 32 Projectiles 43 | . . . . 43 . . . . Explosions 197 | . . . . . 158 39 . . Melee 141 | . . . . 8 . 101 . 32 Knockbacks 4 | . . . . 2 . . . 2 Impact 2 | . . . . 2 . . . . Kinetic 2 | . . . . . . . . 2 Secondary . | . . . . . . . . . Self-Inflicted Damage 646 | . . . . 1 524 121 . . Shots 11 | . . . . . 8 3 . . Rammed 1 | . . . . 1 . . . . Targets Rammed 6 | . 1 . . 4 1 . . . Kicked 5 | . 1 . . 3 1 . . . Crushed . | . . . . . . . . . Highest Temperature 604 | 40 80 192 146 468 604 248 . 162 Average Temperature 120 | 20 23 64 57 152 240 90 . 48 Received Heat Transfer 1542 | . 24 63 72 567 72 462 27 255 Effects 10 | . . . . 4 6 . . . Shutdowns 1 | . . . . . 1 . . . Energy Bleed 4 | . . . . 3 1 . . . Interference 3 | . . . . . 3 . . . Matter Decay 1 | . . . . 1 . . . . Short Circuit 1 | . . . . . 1 . . . Siege Activations . | . . . . . . . . . Robots Corrupted 2 | . . . . 1 . 1 . . Combat Hostiles 1 | . . . . 1 . . . . Parts Fried 15 | . . 1 . 2 . 12 . . Impact Corruptions 2 | . . . . 2 . . . . Robots Melted . | . . . . . . . . . Combat Hostiles . | . . . . . . . . . Parts Melted . | . . . . . . . . . Heat Transferred 3344 | 74 222 259 . 1741 598 250 . 200 Parts Sabotaged . | . . . . . . . . . Parts Stolen . | . . . . . . . . . Parts Stripped . | . . . . . . . . . Power Chain Reactions 5 | . . . . 2 . 3 . . Missiles Intercepted . | . . . . . . . . . Alert | -11 -10 -9 -9 -8 -7 -6 -5 -5 ------- Run | Scr Mat Mat Min Mat Fac Fac Fac Ext Peak Influence 733 | . 209 137 273 284 288 733 436 295 Initial 359 | . . 87 53 105 45 42 359 208 Average 165 | . 104 108 182 164 74 177 382 182 Maximum Alert Level 3 | . 1 . 1 1 1 3 2 1 Low Security (%) 62 | 100 92 100 78 68 96 58 . 26 Level 1 33 | . 7 . 21 31 3 35 71 73 Level 2 3 | . . . . . . 4 28 . Level 3 . | . . . . . . 1 . . Level 4 . | . . . . . . . . . Level 5 . | . . . . . . . . . High Security . | . . . . . . . . . Max Security . | . . . . . . . . . Squads Dispatched 15 | . 3 . . 3 2 7 . . Investigation 1 | . . . . 1 . . . . Extermination 4 | . . . . . 1 3 . . Reinforcement 10 | . 3 . . 2 1 4 . . Assault . | . . . . . . . . . Garrison . | . . . . . . . . . Intercept . | . . . . . . . . . Construction Impeded . | . . . . . . . . . Haulers Reinforced 1 | . . . . . . 1 . . Stealth | -11 -10 -9 -9 -8 -7 -6 -5 -5 --------- Run | Scr Mat Mat Min Mat Fac Fac Fac Ext Distress Signals 3 | . 1 . . . . . 1 1 Communications Jammed . | . . . . . . . . . Distress Signals . | . . . . . . . . . Times Spotted 106 | . 14 1 10 11 10 35 9 16 Peak Tracking Total 5 | . 5 1 4 5 4 5 5 5 Tactical Retreats 6 | . 1 . . . 1 1 1 2 Traps | -11 -10 -9 -9 -8 -7 -6 -5 -5 ------- Run | Scr Mat Mat Min Mat Fac Fac Fac Ext Traps Triggered 3 | . . . . . 1 2 . . Indirectly . | . . . . . . . . . Trap Hack Attempts . | . . . . . . . . . Triggered . | . . . . . . . . . Disarmed . | . . . . . . . . . Reprogrammed . | . . . . . . . . . Reused . | . . . . . . . . . Traps Extracted . | . . . . . . . . . Installed . | . . . . . . . . . Triggered . | . . . . . . . . . Machines | -11 -10 -9 -9 -8 -7 -6 -5 -5 ---------- Run | Scr Mat Mat Min Mat Fac Fac Fac Ext Machines Disabled 30 | . . . . 3 9 17 . 1 Max in Single Turn 9 | . . . . 1 9 6 . 1 Machines Sabotaged . | . . . . . . . . . Garrisons Compromised . | . . . . . . . . . Overloaded Fab Kills . | . . . . . . . . . Fab Network Shutdowns . | . . . . . . . . . Hacking | -11 -10 -9 -9 -8 -7 -6 -5 -5 --------- Run | Scr Mat Mat Min Mat Fac Fac Fac Ext Machines Accessed . | . . . . . . . . . Terminals . | . . . . . . . . . Fabricators . | . . . . . . . . . Repair Stations . | . . . . . . . . . Recycling Units . | . . . . . . . . . Scanalyzers . | . . . . . . . . . Garrison Access . | . . . . . . . . . Total Hacks . | . . . . . . . . . Successful . | . . . . . . . . . Failed . | . . . . . . . . . Catastrophic . | . . . . . . . . . Database Lockouts . | . . . . . . . . . Manual . | . . . . . . . . . Terminals . | . . . . . . . . . Fabricators . | . . . . . . . . . Repair Stations . | . . . . . . . . . Recycling Units . | . . . . . . . . . Scanalyzers . | . . . . . . . . . Garrison Access . | . . . . . . . . . Terminal Hacks . | . . . . . . . . . Fabricator Hacks . | . . . . . . . . . Repair Station Hacks . | . . . . . . . . . Recycling Unit Hacks . | . . . . . . . . . Scanalyzer . | . . . . . . . . . Garrison Access Hacks . | . . . . . . . . . Unauthorized Hacks . | . . . . . . . . . Terminals . | . . . . . . . . . Fabricators . | . . . . . . . . . Repair Stations . | . . . . . . . . . Recycling Units . | . . . . . . . . . Scanalyzers . | . . . . . . . . . Garrison Access . | . . . . . . . . . Data Cores Recovered . | . . . . . . . . . Used . | . . . . . . . . . Hacking Detections . | . . . . . . . . . Full Trace Events . | . . . . . . . . . Feedback Events . | . . . . . . . . . Feedback Blocked . | . . . . . . . . . Robot Schematics Acquired . | . . . . . . . . . Robots Built . | . . . . . . . . . Matter . | . . . . . . . . . Time . | . . . . . . . . . Total Robot Build Rating . | . . . . . . . . . Part Schematics Acquired . | . . . . . . . . . Parts Built . | . . . . . . . . . Matter . | . . . . . . . . . Time . | . . . . . . . . . Total Part Build Rating . | . . . . . . . . . Parts Repaired . | . . . . . . . . . Time . | . . . . . . . . . Parts Recycled . | . . . . . . . . . Recycled Matter . | . . . . . . . . . Retrieved Matter . | . . . . . . . . . Retrieved Components . | . . . . . . . . . Parts Scanalyzed . | . . . . . . . . . Part Schematics Acquired . | . . . . . . . . . Parts Damaged . | . . . . . . . . . Bothacking | -11 -10 -9 -9 -8 -7 -6 -5 -5 ------------ Run | Scr Mat Mat Min Mat Fac Fac Fac Ext Used RIF Installer . | . . . . . . . . . Robots Hacked . | . . . . . . . . . Non-combat . | . . . . . . . . . Combat . | . . . . . . . . . Robot Hacks Applied . | . . . . . . . . . Relay Couplers Released . | . . . . . . . . . Robots Rewired . | . . . . . . . . . Allies Hacked . | . . . . . . . . . Hacks Repelled . | . . . . . . . . . Allies | -11 -10 -9 -9 -8 -7 -6 -5 -5 -------- Run | Scr Mat Mat Min Mat Fac Fac Fac Ext Total Allies . | . . . . . . . . . Largest Group . | . . . . . . . . . Highest-Rated Group . | . . . . . . . . . Highest-Rated Ally . | . . . . . . . . . Total Orders . | . . . . . . . . . Ally Attacks . | . . . . . . . . . Total Damage . | . . . . . . . . . Kills . | . . . . . . . . . Allies Corrupted . | . . . . . . . . . Allies Melted . | . . . . . . . . . Intel | -11 -10 -9 -9 -8 -7 -6 -5 -5 ------- Run | Scr Mat Mat Min Mat Fac Fac Fac Ext Robot Analysis Total . | . . . . . . . . . Derelict Logs Recovered . | . . . . . . . . . Drone Launches . | . . . . . . . . . Drone Recoveries . | . . . . . . . . . Exploration | -11 -10 -9 -9 -8 -7 -6 -5 -5 ------------- Run | Scr Mat Mat Min Mat Fac Fac Fac Ext Turns Passed 4626 | 66 312 163 301 541 552 1898 251 542 Spaces Moved 2818 | 41 163 87 163 243 438 1245 163 275 Core 246 | 6 . . . . 197 37 . 6 Treads 296 | . . . . . . 281 . 15 Legs 2138 | 35 163 87 163 243 241 856 163 187 Wheels 67 | . . . . . . . . 67 Hover . | . . . . . . . . . Flight 71 | . . . . . . 71 . . Fastest Speed 40 | 50 120 120 120 120 50 40 120 90 Average Speed 121 | 109 120 120 120 135 108 125 120 120 Slowest Speed 400 | 120 120 120 150 150 200 160 120 400 Overloaded Moves . | . . . . . . . . . Propulsion Burnouts . | . . . . . . . . . Robots Hopped . | . . . . . . . . . Cave-ins Triggered . | . . . . . . . . . Exploration Rate (%) 21 | 3 40 9 24 24 10 37 5 41 Regions Visited 8 Branch Regions 2 Pre-discovered Areas . | . . . . . . . . . Known Exits Taken . | . . . . . . . . . Unknown Exits Taken 8 | 1 1 1 1 1 1 1 1 . Scrap Searched . | . . . . . . . . . Spaces Dug 12 | . . . . . . 12 . . Terrain Destroyed 201 | . . . . 13 39 143 5 1 Melee . | . . . . . . . . . Projectile 10 | . . . . 8 . 1 . 1 AOE 191 | . . . . 5 39 142 5 . Terrain Rammed . | . . . . . . . . . Walls Destroyed . | . . . . . . . . . Machines Disabled . | . . . . . . . . . Actions | -11 -10 -9 -9 -8 -7 -6 -5 -5 --------- Run | Scr Mat Mat Min Mat Fac Fac Fac Ext Total 3465 | 57 224 128 206 345 482 1440 196 387 Wait 88 | . 13 22 3 14 1 16 5 14 Move 2810 | 40 162 86 162 242 437 1244 162 275 Hop . | . . . . . . . . . Pick Up 80 | 8 7 2 3 10 7 25 5 13 Fast Attach 22 | . 2 . 1 3 4 8 2 2 Attach 72 | 6 1 3 1 9 8 25 3 16 Detach 9 | . . . . . 1 8 . . Swap 36 | . 4 3 2 2 3 14 5 3 Drop 22 | . 2 1 1 4 1 9 2 2 Fire 275 | 3 32 11 33 48 19 69 7 53 Melee 45 | . . . . 9 . 22 5 9 Ram . | . . . . . . . . . Kick 6 | . 1 . . 4 1 . . . Crush . | . . . . . . . . . Escape Stasis . | . . . . . . . . . Rewire . | . . . . . . . . . Trap . | . . . . . . . . . Miscellaneous . | . . . . . . . . . Route ------- -11/Scrapyard -10/Materials (discovered 2 exits: [*Mat] / [*Min]) -9/Materials -9/Mines -8/Materials -7/Factory -6/Factory -5/Factory -5/Extension History --------- Turn | Location | Event 3 | -11/Scrapyard | Discovered new exit (range 15) 67 | -11/Scrapyard | Entered Materials 216 | -10/Materials | Discovered new exit (range 16) 343 | -10/Materials | Build established: Mutant 361 | -10/Materials | Discovered new exit (range 16) 379 | -10/Materials | Entered another Materials area 379 | -9/Materials | Evolved 2 slots: Propulsion x1, Weapon x1 532 | -9/Materials | Discovered new exit (range 8) 542 | -9/Materials | Entered Mines 647 | -9/Mines | Destroyed 7 combat bots 669 | -9/Mines | Discovered new exit (range 14) 843 | -9/Mines | Entered Materials 843 | -8/Materials | Evolved 2 slots: Utility x1, Weapon x1 981 | -8/Materials | Lost 5 parts (2n1u2w) 1190 | -8/Materials | Lost 3 parts (1n1u1w) 1310 | -8/Materials | Discovered new exit (range 16) 1376 | -8/Materials | Build established: Scavenger-Mutant 1384 | -8/Materials | Entered Factory 1384 | -7/Factory | Evolved 2 slots: Power x1, Propulsion x1 1763 | -7/Factory | Core integrity fell below 50% 1793 | -7/Factory | Lost 14 parts (3p4n2u5w) 1919 | -7/Factory | Discovered new exit (range 8) 1936 | -7/Factory | Entered another Factory area 1936 | -6/Factory | Evolved 2 slots: Utility x2 2023 | -6/Factory | Build established: Mutant 2648 | -6/Factory | Build established: Scavenger-Gunner 3071 | -6/Factory | Lost 4 parts (2n1u1w) 3121 | -6/Factory | Lost 4 parts (2n2w) 3327 | -6/Factory | Build established: Mutant 3814 | -6/Factory | Discovered new exit (range 15) 3834 | -6/Factory | Entered another Factory area 3834 | -5/Factory | Evolved 2 slots: Propulsion x1, Utility x1 4037 | -5/Factory | Lost 3 parts (1u2w) 4073 | -5/Factory | Discovered new exit (range 8) 4085 | -5/Factory | Entered Extension 4323 | -5/Extension | Spotted B-75 Beast 4330 | -5/Extension | Spotted B-75 Beast 4378 | -5/Extension | Destroyed B-75 Beast 4460 | -5/Extension | Disrupted transfer network 4467 | -5/Extension | Destroyed B-75 Beast 4495 | -5/Extension | Lost 14 parts (2p6n2u4w) 4551 | -5/Extension | Core integrity fell below 50% 4596 | -5/Extension | Lost 8 parts (1p3n1u3w) 4608 | -5/Extension | Core integrity fell below 20% 4627 | -5/Extension | Destroyed by H-66 Slayer with Gauss Rifle Last Messages --------------- 04598_ Slug penetrates T-07 Excavator. 04598_ T-07 Excavator destroyed. 04601_ Penetrated by Slug. 04602_ S-27 Virus destroyed. 04604_ Penetrated by Slug. 04604_ Hvy. Assault Rifle destroyed. 04607_ Imp. Medium Treads destroyed. 04607_ Deuterium Engine destroyed. 04611_ Penetrated by Slug. 04611_ Imp. Medium Treads destroyed. 04611_ S-27 Virus destroyed. 04613_ Acquired 26 matter. 04614_ Penetrated by Slug. 04614_ Lgt. Fission Core destroyed. 04614_ Penetrated by Slug. 04616_ Destroyed VTOL Module. 04617_ Slug penetrates Wall. 04619_ S-27 Virus suffers critical hit. 04619_ S-27 Virus destroyed. 04620_ Penetrated by Slug. Map ----- +----------------------------------------------------+ | ?????????# #????????? ???????????????????????????? | | ?????????# #????????? ???????????????????????????? | | ?????????# #????????? ???????????????????????????? | | ?????????# #????????? ???????????????????????????? | | ?????????# #????????? ???????????????????????????? | | ?????????#!#????????? ???????????????????????????? | | ?????????#!#?????????=???????????????????????????? | | ?????????#%#????????#=#??????????????????????????? | | ?????????#!#????????#!#??????????????????????????? | | ?????????# #????????#%#??????????????????????????? | | ?????????# #????????#*#??????????????????????????? | | ?????????# #????????#!#??????????????????????????? | | ?????????# #????????# #??????????????????????????? | | ?????????# #????????# #??????????????????????????? | | ?????????# #????????# #??????????????????????????? | | ?????????# #???????## #??????????????????????????? | | ?????????#*#???????## #??????????????????????????? | | ???????### # ########=#??????????????????????????? | | ???????### ### ## ###[###????????????????????????? | | ???????# !! "! ""#????????????????????????? | | ??????## " " #????????????????????????? | | ??????## #????????????????????????? | | ???????# #????????????????????????? | | ######## ################?????????? | | %! h ????????? | | != ! * [@= % ????????? | | ! ! %* = [ % u ????????? | | !|=!* % % ????????? | | %%!Ruu* u RRuut ????????? | | ########*=%! ################?????????? | | ??????## ! #????????????????????????? | | ??????## #????????????????????????? | | ???????# #????????????????????????? | | ???????# #????????????????????????? | | ???????######T#"""#######????????????????????????? | | ????????????###??????????????????????????????????? | | ?????????????????????????????????????????????????? | | | | | | | | | | | | | | | | | | | | | | | | | | | +----------------------------------------------------+ Best States ------------- Heat Dissipation 59 Energy Generation 36 Energy Capacity 335 Matter Stores 300 Matter Capacity 300 Sight Range 22 Terrain Scan Density 10 Power Amplification 20 Additional Mass Support 12 EM Shielding 2 Armor Coverage 600 Power Shielding 66 Utility Shielding 66 Evasion (%) 62 Targeting Accuracy 6 Armor Integrity Analysis 33 Recoil Reduction 2 Matter Filtering 30 Particle Charging 20 Item Schematics ----------------- None Robot Schematics ------------------ None Fabricated ------------ Nothing Alien Tech Used ----------------- None Achievements -------------- Hey, That's Mine! Challenges ------------ None Game ------ Seed GammaOpticalPod Manual? 0 Play Time 01:11:45 Cumulative 8.0 hours Start 2020.11.08 @ 22:38:31 End 2020.11.09 @ 16:52:02 Sessions 3 Manual Loads 0 Difficulty Rogue Special Mode Halloween2020/ForbiddenLore Game No. 15 Rogue 9 Adventurer 6 Explorer 0 Win Type - Total 0 Types 0/0/0/0/0/0/0/0/0 Lore% 3 Gallery% 19 Achievement% 12 Wizard Run 0 Options --------- ASCII 0 Keyboard 0 Movement Mouse Keybinds 0 Fullscreen 1 Font 18/TerminusBold Map View 76x50 Tactical HUD 1 Map Filters NONE Filters NONE Steam 1 RUN: 89fb17cf-0de5-41c5-b0d5-1b1d0aa2ec82